{"text_format":"3","workbook":"xlsx","n_sheets":1,"sheets":["Протокол ШЭ ВОШ по предмету"],"not_rendered":{"external_links":4,"defined_names":2},"read":"whole","date_system":"1900"}

{"sheet":"Протокол ШЭ ВОШ по предмету","index":0,"n_rows":52,"n_cols":15,"rows_kept":52}
["№","Фамилия","Имя","Отчество","Дата рождения","Пол","Участник с ОВЗ (да/нет)","Класс обучения","Класс участия","Балл","Максимальный балл","Статус","Призёр муниципального этапа прошлого года","ФИО учителя","Место работы учителя"]
[1,"Сажнева ","Карина","Александровна","2007-12-25","ж","нет",8,8,{"$f":"[1]edu163763_sch22_8_result!E7","v":19},50,"призер",{"$f":"G2","v":"нет"},"Самигуллина Татьяна Леонидовна","Муниципальное бюджетное общеобразовательное учреждение «Средняя общеобразовательная школа №29» Нижнекамского муниципального района Республики Татарстан"]
[2,"Сиваков","Максим","Вячеславович","2008-06-03","м","нет",8,8,{"$f":"[1]edu163763_sch22_8_result!E8","v":16},50,"Участник","нет","Самигуллина Татьяна Леонидовна","Муниципальное бюджетное общеобразовательное учреждение «Средняя общеобразовательная школа №29» Нижнекамского муниципального района Республики Татарстан"]
[3,"Чупашова ","Виктория","Вадимовна","2008-01-31","ж","нет",8,8,{"$f":"[1]edu163763_sch22_8_result!E9","v":16},50,"Участник","нет","Самигуллина Татьяна Леонидовна","Муниципальное бюджетное общеобразовательное учреждение «Средняя общеобразовательная школа №29» Нижнекамского муниципального района Республики Татарстан"]
[4,"Большакова ","Ангелина","Эдуардовна","2007-12-22","ж","нет",8,8,{"$f":"[1]edu163763_sch22_8_result!E10","v":15.5},50,"Участник","нет","Самигуллина Татьяна Леонидовна","Муниципальное бюджетное общеобразовательное учреждение «Средняя общеобразовательная школа №29» Нижнекамского муниципального района Республики Татарстан"]
[5,"Евдокимов","Марат","Сергеевич","2008-09-06","м","нет",8,8,{"$f":"[1]edu163763_sch22_8_result!E11","v":15.5},50,"Участник","нет","Самигуллина Татьяна Леонидовна","Муниципальное бюджетное общеобразовательное учреждение «Средняя общеобразовательная школа №29» Нижнекамского муниципального района Республики Татарстан"]
[6,"Пименов ","Илья","Дмитриевич","2008-10-23","м","нет",8,8,{"$f":"[1]edu163763_sch22_8_result!E12","v":15.5},50,"Участник","нет","Самигуллина Татьяна Леонидовна","Муниципальное бюджетное общеобразовательное учреждение «Средняя общеобразовательная школа №29» Нижнекамского муниципального района Республики Татарстан"]
[7,"Потапов Данила ","Данила","Андреевич","2008-04-27","м","нет",8,8,{"$f":"[1]edu163763_sch22_8_result!E13","v":15.5},50,"Участник","нет","самигуллина Татьяна Леонидовна","Муниципальное бюджетное общеобразовательное учреждение «Средняя общеобразовательная школа №29» Нижнекамского муниципального района Республики Татарстан"]
[8,"Капралов ","Владислав","Вячеславович","2007-11-14","м","нет",8,8,{"$f":"[1]edu163763_sch22_8_result!E14","v":14},50,"Участник","нет",{"$f":"N2","v":"Самигуллина Татьяна Леонидовна"},"Муниципальное бюджетное общеобразовательное учреждение «Средняя общеобразовательная школа №29» Нижнекамского муниципального района Республики Татарстан"]
[9,"Шатанов ","Глеб","Максимович","2008-09-10","м","нет",8,8,{"$f":"[1]edu163763_sch22_8_result!E15","v":13},50,{"$f":"L3","v":"Участник"},"нет","Самигуллина Татьяна Леонидовна","Муниципальное бюджетное общеобразовательное учреждение «Средняя общеобразовательная школа №29» Нижнекамского муниципального района Республики Татарстан"]
[10,"Вафин ","Амир","Рустемович","2008-06-08","м","нет",8,8,{"$f":"[1]edu163763_sch22_8_result!E16","v":11},50,"Участник","нет","Самигуллина Татьяна Леонидовна","Муниципальное бюджетное общеобразовательное учреждение «Средняя общеобразовательная школа №29» Нижнекамского муниципального района Республики Татарстан"]
[11,"Гилязиев","Булат","Раязович","2008-01-04","м","нет",8,8,{"$f":"[1]edu163763_sch22_8_result!E17","v":10.5},50,"Участник","нет","Самигуллина Татьяна Леонидовна","Муниципальное бюджетное общеобразовательное учреждение «Средняя общеобразовательная школа №29» Нижнекамского муниципального района Республики Татарстан"]
[12,"Кирюшенков ","Арсений","Максимович","2008-04-21","м","нет",8,8,{"$f":"[1]edu163763_sch22_8_result!E18","v":10.5},50,"Участник","нет","Самигуллина Татьяна Леонидовна","Муниципальное бюджетное общеобразовательное учреждение «Средняя общеобразовательная школа №29» Нижнекамского муниципального района Республики Татарстан"]
[13,"Хайруллина ","Камилла","Рамилевна","2008-07-20","ж","нет",8,8,{"$f":"[1]edu163763_sch22_8_result!E19","v":10.5},50,"Участник","нет","Самигуллина Татьяна Леонидовна","Муниципальное бюджетное общеобразовательное учреждение «Средняя общеобразовательная школа №29» Нижнекамского муниципального района Республики Татарстан"]
[14,"Семенова","Эвелина","Михайловна","2008-04-07","ж","нет",8,8,{"$f":"[1]edu163763_sch22_8_result!E20","v":10.5},50,"Участник","нет","Самигуллина Татьяна Леонидовна","Муниципальное бюджетное общеобразовательное учреждение «Средняя общеобразовательная школа №29» Нижнекамского муниципального района Республики Татарстан"]
[15,"Камалова ","Азалия","Ильшатовна","2008-09-04","ж","нет",8,8,{"$f":"[1]edu163763_sch22_8_result!E21","v":10.5},50,"Участник","нет",{"$f":"N2","v":"Самигуллина Татьяна Леонидовна"},"Муниципальное бюджетное общеобразовательное учреждение «Средняя общеобразовательная школа №29» Нижнекамского муниципального района Республики Татарстан"]
[16,"Мухлисуллина ","Алсу","Римовна","2007-12-31","ж","нет",8,8,{"$f":"[1]edu163763_sch22_8_result!E22","v":10},50,{"$f":"L3","v":"Участник"},"нет","Самигуллина Татьяна Леонидовна","Муниципальное бюджетное общеобразовательное учреждение «Средняя общеобразовательная школа №29» Нижнекамского муниципального района Республики Татарстан"]
[17,"Гимадиев ","Камиль","Дамирович","2007-12-23","м","нет",8,8,{"$f":"[1]edu163763_sch22_8_result!E23","v":10},50,"Участник","нет","Самигуллина Татьяна Леонидовна","Муниципальное бюджетное общеобразовательное учреждение «Средняя общеобразовательная школа №29» Нижнекамского муниципального района Республики Татарстан"]
[18,"Гаффарова ","Рената","Рамисовна","2008-07-29","ж","нет",8,8,{"$f":"[1]edu163763_sch22_8_result!E24","v":9},50,"Участник","нет","Самигуллина Татьяна Леонидовна","Муниципальное бюджетное общеобразовательное учреждение «Средняя общеобразовательная школа №29» Нижнекамского муниципального района Республики Татарстан"]
[19,"Зарипова ","Алина","Ильмировна","2008-06-29","ж","нет",8,8,{"$f":"[1]edu163763_sch22_8_result!E25","v":8.5},50,"Участник","нет","Самигуллина Татьяна Леонидовна","Муниципальное бюджетное общеобразовательное учреждение «Средняя общеобразовательная школа №29» Нижнекамского муниципального района Республики Татарстан"]
[20,"Вершинина ","Анна","Андреевна","2008-07-05","ж","нет",8,8,{"$f":"[1]edu163763_sch22_8_result!E26","v":7},50,"Участник","нет","Самигуллина Татьяна Леонидовна","Муниципальное бюджетное общеобразовательное учреждение «Средняя общеобразовательная школа №29» Нижнекамского муниципального района Республики Татарстан"]
[21,"Байхузина","Камилла","Ильсуровна","2007-10-02","ж","нет",9,9,{"$f":"[2]edu163763_sch22_9_result!E7","v":14},50,"Участник",{"$f":"M8","v":"нет"},"самигуллина Татьяна Леонидовна","Муниципальное бюджетное общеобразовательное учреждение «Средняя общеобразовательная школа №29» Нижнекамского муниципального района Республики Татарстан"]
[22,"Самаренкина","Диана","Николаевна","2007-05-13","ж","нет",9,9,{"$f":"[2]edu163763_sch22_9_result!E8","v":11.5},50,"Участник","нет","Самигуллина Татьяна Леонидовна","Муниципальное бюджетное общеобразовательное учреждение «Средняя общеобразовательная школа №29» Нижнекамского муниципального района Республики Татарстан"]
[23,"Кондратьева","Камилла","Вадимовна","2007-07-01","ж","нет",9,9,{"$f":"[2]edu163763_sch22_9_result!E9","v":10.75},{"$f":"K9","v":50},"Участник","нет","Самигуллина Татьяна Леонидовна","Муниципальное бюджетное общеобразовательное учреждение «Средняя общеобразовательная школа №29» Нижнекамского муниципального района Республики Татарстан"]
[24,"Вишнякова","Дана","Алексеевна","2007-04-27","ж","нет",9,9,{"$f":"[2]edu163763_sch22_9_result!E10","v":10.7},50,"Участник","нет","Самигуллина Татьяна Леонидовна","Муниципальное бюджетное общеобразовательное учреждение «Средняя общеобразовательная школа №29» Нижнекамского муниципального района Республики Татарстан"]
[25,"Квитковских","Ольга","Алексеевна","2007-09-26","ж","нет",9,9,{"$f":"[2]edu163763_sch22_9_result!E11","v":10.3},50,"Участник","нет","Самигуллина Татьяна Леонидовна","Муниципальное бюджетное общеобразовательное учреждение «Средняя общеобразовательная школа №29» Нижнекамского муниципального района Республики Татарстан"]
[26,"Петросян","София","Мамиконовна","2007-10-07","ж","нет",9,9,{"$f":"[2]edu163763_sch22_9_result!E12","v":9.9},50,"Участник","нет","Самигуллина Татьяна Леонидовна","Муниципальное бюджетное общеобразовательное учреждение «Средняя общеобразовательная школа №29» Нижнекамского муниципального района Республики Татарстан"]
[27,"Морозов","Данила","Вячеславович","2007-07-05","м","нет",9,9,{"$f":"[2]edu163763_sch22_9_result!E13","v":9.8},50,"Участник","нет","Самигуллина Татьяна Леонидовна","Муниципальное бюджетное общеобразовательное учреждение «Средняя общеобразовательная школа №29» Нижнекамского муниципального района Республики Татарстан"]
[28,"Шушков","Артем","Максимович","2007-01-01","м","нет",9,9,{"$f":"[2]edu163763_sch22_9_result!E14","v":9.3},50,"Участник","нет","Самигуллина Татьяна Леонидовна","Муниципальное бюджетное общеобразовательное учреждение «Средняя общеобразовательная школа №29» Нижнекамского муниципального района Республики Татарстан"]
[29,"Трефилова","Полина","Павловна","2007-09-11","ж","нет",9,9,{"$f":"[2]edu163763_sch22_9_result!E15","v":8.85},50,"Участник","нет","Самигуллина Татьяна Леонидовна","Муниципальное бюджетное общеобразовательное учреждение «Средняя общеобразовательная школа №29» Нижнекамского муниципального района Республики Татарстан"]
[30,"Ефремов","Александр","Сергеевич","2007-02-01","м","нет",9,9,{"$f":"[2]edu163763_sch22_9_result!E16","v":8.55},50,"Участник","нет","Самигуллина Татьяна Леонидовна","Муниципальное бюджетное общеобразовательное учреждение «Средняя общеобразовательная школа №29» Нижнекамского муниципального района Республики Татарстан"]
[31,"Егорова","Зилия","Марсовна","2007-10-20","ж","нет",9,9,{"$f":"[2]edu163763_sch22_9_result!E17","v":8.25},50,"Участник","нет","Самигуллина Татьяна Леонидовна","Муниципальное бюджетное общеобразовательное учреждение «Средняя общеобразовательная школа №29» Нижнекамского муниципального района Республики Татарстан"]
[32,"Енизеркин","Данила","Евгеньевич","2007-06-19","м","нет",9,9,{"$f":"[2]edu163763_sch22_9_result!E18","v":7.8},50,"Участник","нет","Самигуллина Татьяна Леонидовна","Муниципальное бюджетное общеобразовательное учреждение «Средняя общеобразовательная школа №29» Нижнекамского муниципального района Республики Татарстан"]
[33,"Бурова","Кристина","Константиновна","2006-12-21","ж","нет",10,{"$f":"H34","v":10},{"$f":"[3]edu163763_sch22_10_result!E7","v":21.5},50,"призер","нет","Самигуллина Татьяна Леонидовна","Муниципальное бюджетное общеобразовательное учреждение «Средняя общеобразовательная школа №29» Нижнекамского муниципального района Республики Татарстан"]
[34,"Мартьянов","Вадим","Олегович","2006-05-18","м","нет",10,10,{"$f":"[3]edu163763_sch22_10_result!E8","v":20.5},50,"Участник","нет","Самигуллина Татьяна Леонидовна","Муниципальное бюджетное общеобразовательное учреждение «Средняя общеобразовательная школа №29» Нижнекамского муниципального района Республики Татарстан"]
[35,"Смирнова","Юлия","Викторовна","2006-08-31","ж",{"$f":"G28","v":"нет"},10,10,{"$f":"[3]edu163763_sch22_10_result!E9","v":19.5},50,"Участник",{"$f":"M27","v":"нет"},"Самигуллина Татьяна Леонидовна","Муниципальное бюджетное общеобразовательное учреждение «Средняя общеобразовательная школа №29» Нижнекамского муниципального района Республики Татарстан"]
[36,"Закирова","Алия","Альбертовна","2006-06-26","ж","нет",{"$f":"H34","v":10},{"$f":"H34","v":10},{"$f":"[3]edu163763_sch22_10_result!E10","v":19},50,"Участник","нет","Самигуллина Татьяна Леонидовна","Муниципальное бюджетное общеобразовательное учреждение «Средняя общеобразовательная школа №29» Нижнекамского муниципального района Республики Татарстан"]
[37,"Сафина","Алина","Марсовна","2006-04-28","ж","нет",10,10,{"$f":"[3]edu163763_sch22_10_result!E11","v":18.5},50,"Участник","нет","Самигуллина Татьяна Леонидовна","Муниципальное бюджетное общеобразовательное учреждение «Средняя общеобразовательная школа №29» Нижнекамского муниципального района Республики Татарстан"]
[38,"Гайнуллина","Камиля","Ильдаровна","2006-09-25","ж","нет",10,10,{"$f":"[3]edu163763_sch22_10_result!E12","v":17},50,"Участник","нет","Самигуллина Татьяна Леонидовна","Муниципальное бюджетное общеобразовательное учреждение «Средняя общеобразовательная школа №29» Нижнекамского муниципального района Республики Татарстан"]
[39,"Шигапова","Камилла","Ильшатовна","2006-09-17","ж","нет",{"$f":"H34","v":10},{"$f":"H34","v":10},{"$f":"[3]edu163763_sch22_10_result!E13","v":13.5},50,"Участник","нет","Самигуллина Татьяна Леонидовна","Муниципальное бюджетное общеобразовательное учреждение «Средняя общеобразовательная школа №29» Нижнекамского муниципального района Республики Татарстан"]
[40,"Буранкова","Айзиля","Павловна","2006-08-03","ж","нет",10,10,{"$f":"[3]edu163763_sch22_10_result!E14","v":12},50,"Участник","нет","Самигуллина Татьяна Леонидовна","Муниципальное бюджетное общеобразовательное учреждение «Средняя общеобразовательная школа №29» Нижнекамского муниципального района Республики Татарстан"]
[41,"Валеева","Рузиля","Айратовна","2006-09-13","ж","нет",10,10,{"$f":"[3]edu163763_sch22_10_result!E15","v":10},50,"Участник","нет","Самигуллина Татьяна Леонидовна","Муниципальное бюджетное общеобразовательное учреждение «Средняя общеобразовательная школа №29» Нижнекамского муниципального района Республики Татарстан"]
[42,"Пигузова","Татьяна","Юрьевна","2005-01-01","ж","нет",11,{"$f":"H43","v":11},{"$f":"[4]edu163763_sch22_11_result!E7","v":12.5},{"$f":"K34","v":50},"Участник","нет","Самигуллина Татьяна Леонидовна","Муниципальное бюджетное общеобразовательное учреждение «Средняя общеобразовательная школа №29» Нижнекамского муниципального района Республики Татарстан"]
[43,"Шишлова","Маргарита","Олеговна","2005-10-17","ж","нет",11,11,{"$f":"[4]edu163763_sch22_11_result!E8","v":12.5},50,"Участник","нет","Самигуллина Татьяна Леонидовна","Муниципальное бюджетное общеобразовательное учреждение «Средняя общеобразовательная школа №29» Нижнекамского муниципального района Республики Татарстан"]
[44,"Агафонова","Кира","Евгеньевна","2005-12-13","ж",{"$f":"G36","v":"нет"},11,11,{"$f":"[4]edu163763_sch22_11_result!E9","v":9.5},50,"Участник",{"$f":"M27","v":"нет"},"Самигуллина Татьяна Леонидовна","Муниципальное бюджетное общеобразовательное учреждение «Средняя общеобразовательная школа №29» Нижнекамского муниципального района Республики Татарстан"]
[45,"Нуждина","Анастасия","Владиславовна","2004-12-17","ж","нет",{"$f":"H43","v":11},11,{"$f":"[4]edu163763_sch22_11_result!E10","v":8.5},50,"Участник","нет","Самигуллина Татьяна Леонидовна","Муниципальное бюджетное общеобразовательное учреждение «Средняя общеобразовательная школа №29» Нижнекамского муниципального района Республики Татарстан"]
[46,"Бикмухаметова","Алина","Рустемовна","2005-10-20","ж","нет",11,11,{"$f":"[4]edu163763_sch22_11_result!E11","v":7},50,"Участник","нет","Самигуллина Татьяна Леонидовна","Муниципальное бюджетное общеобразовательное учреждение «Средняя общеобразовательная школа №29» Нижнекамского муниципального района Республики Татарстан"]
[47,"Халилова","Залия","Фанисовна","2005-03-24","ж","нет",11,11,{"$f":"[4]edu163763_sch22_11_result!E12","v":7},50,"Участник","нет","Самигуллина Татьяна Леонидовна","Муниципальное бюджетное общеобразовательное учреждение «Средняя общеобразовательная школа №29» Нижнекамского муниципального района Республики Татарстан"]
[48,"Кириллов","Илья","Владиславович","2005-02-20","м","нет",11,11,{"$f":"[4]edu163763_sch22_11_result!E13","v":6.5},50,"Участник","нет","Самигуллина Татьяна Леонидовна","Муниципальное бюджетное общеобразовательное учреждение «Средняя общеобразовательная школа №29» Нижнекамского муниципального района Республики Татарстан"]
[49,"Мадюкова","Полина","Эдуардовна","2005-08-23","ж","нет",11,11,{"$f":"[4]edu163763_sch22_11_result!E14","v":5.5},50,"Участник","да","Самигуллина Татьяна Леонидовна","Муниципальное бюджетное общеобразовательное учреждение «Средняя общеобразовательная школа №29» Нижнекамского муниципального района Республики Татарстан"]
[50,"Бойко","Данила","Антонович","2005-04-20","м","нет",11,11,{"$f":"[4]edu163763_sch22_11_result!E15","v":5.5},50,"Участник","нет","Самигуллина Татьяна Леонидовна","Муниципальное бюджетное общеобразовательное учреждение «Средняя общеобразовательная школа №29» Нижнекамского муниципального района Республики Татарстан"]
[51,"Хамидуллин","Илья","Эдуардович","2005-09-09","м","нет",11,11,{"$f":"[4]edu163763_sch22_11_result!E16","v":3},50,"Участник","нет","Самигуллина Татьяна Леонидовна","Муниципальное бюджетное общеобразовательное учреждение «Средняя общеобразовательная школа №29» Нижнекамского муниципального района Республики Татарстан"]